[Event "Live Chess"]
[Site "Chess.com"]
[Date "2023.05.20"]
[Round "-"]
[White "Tushinskiy"]
[Black "Duke_of_Bebington"]
[Result "1-0"]
[WhiteElo "2141"]
[BlackElo "1578"]
[TimeControl "300"]
[EndTime "14:54:42 PDT"]
[Termination "Tushinskiy won by checkmate"]

1. d4 {[%clk 0:04:55.9]} 1... d5 {[%clk 0:04:58.7]} 2. c3 {[%clk 0:04:55.8]}
2... Nf6 {[%clk 0:04:55.7]} 3. Nf3 {[%clk 0:04:48.4]} 3... Bf5 {[%clk
0:04:53.8]} 4. Bf4 {[%clk 0:04:45.6]} 4... h6 {[%clk 0:04:51.9]} 5. Bg3 {[%clk
0:04:43.6]} 5... e6 {[%clk 0:04:46.8]} 6. Nbd2 {[%clk 0:04:40.5]} 6... c5 {[%clk
0:04:45.3]} 7. e3 {[%clk 0:04:34.5]} 7... Nc6 {[%clk 0:04:42]} 8. Be2 {[%clk
0:04:33.5]} 8... Bd6 {[%clk 0:04:38]} 9. Qc1 {[%clk 0:04:28.5]} 9... Bxg3 {[%clk
0:04:34.6]} 10. hxg3 {[%clk 0:04:26.6]} 10... cxd4 {[%clk 0:04:33.3]} 11. exd4
{[%clk 0:04:24.3]} 11... Rc8 {[%clk 0:04:26.6]} 12. O-O {[%clk 0:04:17.1]} 12...
O-O {[%clk 0:04:24.9]} 13. Nb3 {[%clk 0:04:11.9]} 13... b6 {[%clk 0:04:23]} 14.
Re1 {[%clk 0:04:05]} 14... Re8 {[%clk 0:04:19.7]} 15. Bb5 {[%clk 0:04:02.4]}
15... Re7 {[%clk 0:04:08]} 16. Qe3 {[%clk 0:03:53.1]} 16... Qd6 {[%clk
0:03:43.5]} 17. Ne5 {[%clk 0:03:45.3]} 17... Nd7 {[%clk 0:03:36.1]} 18. Nxc6
{[%clk 0:03:39.3]} 18... Rxc6 {[%clk 0:03:31.2]} 19. Bxc6 {[%clk 0:03:39.2]}
19... Qxc6 {[%clk 0:03:30.9]} 20. Nd2 {[%clk 0:03:36.4]} 20... Nf6 {[%clk
0:03:29.5]} 21. f3 {[%clk 0:03:33.2]} 21... Rc7 {[%clk 0:03:21.6]} 22. Rac1
{[%clk 0:03:31.5]} 22... a6 {[%clk 0:03:18.4]} 23. Kh2 {[%clk 0:03:28.4]} 23...
b5 {[%clk 0:03:10.3]} 24. b3 {[%clk 0:03:25.4]} 24... Nd7 {[%clk 0:03:08.4]} 25.
Qe2 {[%clk 0:03:17.1]} 25... Nb6 {[%clk 0:03:00.5]} 26. Qf2 {[%clk 0:03:04.1]}
26... Qd7 {[%clk 0:02:53.3]} 27. Nf1 {[%clk 0:02:55.3]} 27... Qc8 {[%clk
0:02:50]} 28. Qd2 {[%clk 0:02:52.2]} 28... a5 {[%clk 0:02:41.2]} 29. Ne3 {[%clk
0:02:50.4]} 29... Bg6 {[%clk 0:02:36.6]} 30. Kg1 {[%clk 0:02:46.6]} 30... a4
{[%clk 0:02:30.3]} 31. Kh2 {[%clk 0:02:45.7]} 31... Qd7 {[%clk 0:02:23.5]} 32.
Ng4 {[%clk 0:02:24.8]} 32... f6 {[%clk 0:02:18.1]} 33. Qe2 {[%clk 0:02:22.4]}
33... Rc6 {[%clk 0:02:09.6]} 34. Qxb5 {[%clk 0:02:17.2]} 34... axb3 {[%clk
0:02:03.3]} 35. axb3 {[%clk 0:02:15.2]} 35... Be8 {[%clk 0:01:58.8]} 36. Qe2
{[%clk 0:01:59.9]} 36... Bf7 {[%clk 0:01:50.5]} 37. Qd3 {[%clk 0:01:52.9]} 37...
Qc7 {[%clk 0:01:47]} 38. Ne3 {[%clk 0:01:41.8]} 38... Nd7 {[%clk 0:01:42.9]} 39.
c4 {[%clk 0:01:39.7]} 39... dxc4 {[%clk 0:01:40]} 40. bxc4 {[%clk 0:01:39.6]}
40... Rd6 {[%clk 0:01:35.3]} 41. d5 {[%clk 0:01:36.9]} 41... e5 {[%clk
0:01:29.9]} 42. Nf5 {[%clk 0:01:34.4]} 42... Nc5 {[%clk 0:01:27.1]} 43. Qa3
{[%clk 0:01:23.7]} 43... Rb6 {[%clk 0:01:24]} 44. Rb1 {[%clk 0:01:19.9]} 44...
Rxb1 {[%clk 0:01:13.2]} 45. Rxb1 {[%clk 0:01:19.8]} 45... e4 {[%clk 0:01:11.6]}
46. f4 {[%clk 0:01:08.8]} 46... Nd3 {[%clk 0:01:03.6]} 47. Qa8+ {[%clk
0:00:57.2]} 47... Kh7 {[%clk 0:01:01.7]} 48. Qf8 {[%clk 0:00:56.2]} 48... Bg6
{[%clk 0:00:58.7]} 49. Ne7 {[%clk 0:00:54.3]} 49... Nxf4 {[%clk 0:00:52]} 50.
Qg8# {[%clk 0:00:51.1]} 1-0

[Event "Live Chess"]
[Site "Chess.com"]
[Date "2023.05.20"]
[Round "-"]
[White "SupremeTactician"]
[Black "mikkyb4"]
[Result "1-0"]
[WhiteElo "2367"]
[BlackElo "1008"]
[TimeControl "300"]
[EndTime "14:54:42 PDT"]
[Termination "SupremeTactician won by resignation"]

1. e4 {[%clk 0:04:58.6]} 1... g6 {[%clk 0:04:59.3]} 2. d4 {[%clk 0:04:57.5]}
2... Bg7 {[%clk 0:04:58.4]} 3. Nc3 {[%clk 0:04:55.3]} 3... d6 {[%clk 0:04:57.2]}
4. f4 {[%clk 0:04:54.6]} 4... Nc6 {[%clk 0:04:47.1]} 5. Nf3 {[%clk 0:04:53.6]}
5... Bg4 {[%clk 0:04:45.3]} 6. Be3 {[%clk 0:04:49.5]} 6... Bxf3 {[%clk
0:04:43.4]} 7. gxf3 {[%clk 0:04:47.1]} 7... d5 {[%clk 0:04:42.5]} 8. exd5 {[%clk
0:04:44.8]} 8... Nb4 {[%clk 0:04:41.6]} 9. Bc4 {[%clk 0:04:36.3]} 9... Nf6
{[%clk 0:04:33.2]} 10. Qd2 {[%clk 0:04:24.7]} 10... Nfxd5 {[%clk 0:04:29.3]} 11.
Nxd5 {[%clk 0:04:21.7]} 11... Nxd5 {[%clk 0:04:28.2]} 12. O-O-O {[%clk
0:04:10.9]} 12... e6 {[%clk 0:04:05.8]} 13. Rhe1 {[%clk 0:03:59.9]} 13... O-O
{[%clk 0:04:04.4]} 14. Bf2 {[%clk 0:03:57.8]} 14... Bh6 {[%clk 0:03:59.7]} 15.
Bg3 {[%clk 0:03:53.4]} 15... a6 {[%clk 0:03:48.2]} 16. Re5 {[%clk 0:03:43.4]}
16... b5 {[%clk 0:03:37.3]} 17. Bxd5 {[%clk 0:03:31.6]} 17... exd5 {[%clk
0:03:33]} 18. Kb1 {[%clk 0:03:28.2]} 18... Bg7 {[%clk 0:03:26.8]} 19. Re2 {[%clk
0:03:25.5]} 19... c5 {[%clk 0:03:22.6]} 20. dxc5 {[%clk 0:03:22]} 20... Qc7
{[%clk 0:03:11.1]} 21. Bf2 {[%clk 0:03:11.6]} 21... Rfb8 {[%clk 0:03:00.8]} 22.
Bd4 {[%clk 0:02:55.6]} 22... b4 {[%clk 0:02:29.5]} 23. Bxg7 {[%clk 0:02:33.4]}
23... Kxg7 {[%clk 0:02:25.7]} 24. Qd4+ {[%clk 0:02:32.9]} 24... Kg8 {[%clk
0:02:22.7]} 25. b3 {[%clk 0:02:31.9]} 25... a5 {[%clk 0:02:17.1]} 26. Re5 {[%clk
0:02:30.5]} 26... a4 {[%clk 0:02:10.5]} 27. Rxd5 {[%clk 0:02:28.5]} 27... axb3
{[%clk 0:02:07.5]} 28. cxb3 {[%clk 0:02:28.4]} 28... Rxa2 {[%clk 0:01:49.1]} 29.
Kxa2 {[%clk 0:02:21.1]} 29... Qa5+ {[%clk 0:01:47.8]} 30. Kb1 {[%clk 0:02:17.7]}
30... Ra8 {[%clk 0:01:42.2]} 31. Rd8+ {[%clk 0:02:16.8]} 31... Rxd8 {[%clk
0:01:35.9]} 32. Qxd8+ {[%clk 0:02:16.7]} 32... Kg7 {[%clk 0:01:35.2]} 33. Qxa5
{[%clk 0:02:14.2]} 1-0

[Event "Live Chess"]
[Site "Chess.com"]
[Date "2023.05.20"]
[Round "-"]
[White "ViktorTheCoolBoy"]
[Black "JanMur7"]
[Result "1-0"]
[WhiteElo "2514"]
[BlackElo "1983"]
[TimeControl "300"]
[EndTime "14:54:49 PDT"]
[Termination "ViktorTheCoolBoy won by resignation"]

1. c4 {[%clk 0:04:55]} 1... c5 {[%clk 0:04:58.8]} 2. Nc3 {[%clk 0:04:54.1]} 2...
Nc6 {[%clk 0:04:58.1]} 3. Nf3 {[%clk 0:04:53.4]} 3... g6 {[%clk 0:04:57.2]} 4.
e3 {[%clk 0:04:52.4]} 4... Bg7 {[%clk 0:04:57.1]} 5. d4 {[%clk 0:04:51.3]} 5...
cxd4 {[%clk 0:04:56.7]} 6. exd4 {[%clk 0:04:50.1]} 6... Nf6 {[%clk 0:04:54.2]}
7. d5 {[%clk 0:04:49.1]} 7... Nb8 {[%clk 0:04:51.9]} 8. Be2 {[%clk 0:04:47.1]}
8... d6 {[%clk 0:04:51.1]} 9. O-O {[%clk 0:04:44.2]} 9... Bf5 {[%clk 0:04:50]}
10. h3 {[%clk 0:04:43.1]} 10... h5 {[%clk 0:04:48.3]} 11. Nd4 {[%clk 0:04:42.1]}
11... Bd7 {[%clk 0:04:46.2]} 12. Be3 {[%clk 0:04:41.1]} 12... O-O {[%clk
0:04:45.1]} 13. b4 {[%clk 0:04:39]} 13... Na6 {[%clk 0:04:44.3]} 14. Qb3 {[%clk
0:04:38]} 14... Nc7 {[%clk 0:04:43.4]} 15. Rfc1 {[%clk 0:04:33.7]} 15... e5
{[%clk 0:04:41.7]} 16. dxe6 {[%clk 0:04:32.2]} 16... Nxe6 {[%clk 0:04:40.9]} 17.
Rd1 {[%clk 0:04:29.9]} 17... Rc8 {[%clk 0:04:35.1]} 18. Rac1 {[%clk 0:04:19.5]}
18... Nxd4 {[%clk 0:04:18.1]} 19. Bxd4 {[%clk 0:04:17.8]} 19... Be6 {[%clk
0:04:17.1]} 20. Bxa7 {[%clk 0:04:11.5]} 20... Qc7 {[%clk 0:04:15]} 21. Nb5
{[%clk 0:04:02.5]} 21... Qc6 {[%clk 0:04:09.2]} 22. Rxd6 {[%clk 0:03:55.1]}
22... Qxb5 {[%clk 0:04:00.6]} 23. cxb5 {[%clk 0:03:51]} 23... Rxc1+ {[%clk
0:04:00.5]} 24. Qd1 {[%clk 0:03:49.7]} 24... Rxd1+ {[%clk 0:03:45.9]} 25. Rxd1
{[%clk 0:03:49.6]} 25... Nd5 {[%clk 0:03:31.1]} 26. Bf3 {[%clk 0:03:46]} 26...
Nc3 {[%clk 0:03:20.5]} 27. Rd2 {[%clk 0:03:42]} 27... Nxb5 {[%clk 0:03:16.8]}
28. Bc5 {[%clk 0:03:40.8]} 28... Rb8 {[%clk 0:03:09.9]} 29. a4 {[%clk
0:03:39.5]} 29... Nc3 {[%clk 0:03:05.1]} 30. a5 {[%clk 0:03:36.8]} 30... Bf5
{[%clk 0:02:54.7]} 31. Bd6 {[%clk 0:03:34.7]} 31... Rd8 {[%clk 0:02:50.5]} 32.
Bxb7 {[%clk 0:03:33.4]} 32... Bh6 {[%clk 0:02:38.2]} 33. Rd4 {[%clk 0:03:28.7]}
33... Nb5 {[%clk 0:02:34]} 34. Rd5 {[%clk 0:03:21.7]} 34... Nxd6 {[%clk
0:02:29.6]} 35. Bc6 {[%clk 0:03:20.8]} 35... Be6 {[%clk 0:02:19.9]} 36. Rc5
{[%clk 0:03:17.5]} 36... Bc4 {[%clk 0:02:03.5]} 37. b5 {[%clk 0:03:12.2]} 37...
Bxb5 {[%clk 0:01:53.7]} 38. Bxb5 {[%clk 0:03:09.7]} 38... Nxb5 {[%clk
0:01:53.6]} 39. Rxb5 {[%clk 0:03:09.4]} 39... Ra8 {[%clk 0:01:52.3]} 40. Rd5
{[%clk 0:03:04.2]} 40... Bg5 {[%clk 0:01:47]} 41. Rxg5 {[%clk 0:03:02.5]} 41...
Kg7 {[%clk 0:01:42.5]} 42. Rb5 {[%clk 0:03:01.3]} 42... Ra6 {[%clk 0:01:41.4]}
43. h4 {[%clk 0:02:59.9]} 43... Kf6 {[%clk 0:01:40.1]} 44. Rb6+ {[%clk
0:02:58.7]} 44... Rxb6 {[%clk 0:01:37.1]} 45. axb6 {[%clk 0:02:58.6]} 45... Ke7
{[%clk 0:01:36.7]} 46. b7 {[%clk 0:02:57.8]} 1-0

[Event "Live Chess"]
[Site "Chess.com"]
[Date "2023.05.20"]
[Round "-"]
[White "MarkLim1"]
[Black "jennybobby44"]
[Result "0-1"]
[WhiteElo "1666"]
[BlackElo "1846"]
[TimeControl "300"]
[EndTime "14:54:58 PDT"]
[Termination "jennybobby44 won by resignation"]

1. d4 {[%clk 0:04:59.6]} 1... c5 {[%clk 0:04:59.2]} 2. d5 {[%clk 0:04:58.5]}
2... d6 {[%clk 0:04:58.3]} 3. Nc3 {[%clk 0:04:57.7]} 3... e5 {[%clk 0:04:57.8]}
4. e4 {[%clk 0:04:56.7]} 4... f5 {[%clk 0:04:57]} 5. Nf3 {[%clk 0:04:48.3]} 5...
Nf6 {[%clk 0:04:56]} 6. Bb5+ {[%clk 0:04:45.9]} 6... Nbd7 {[%clk 0:04:52.1]} 7.
exf5 {[%clk 0:04:44.6]} 7... a6 {[%clk 0:04:51.3]} 8. Bxd7+ {[%clk 0:04:42.4]}
8... Bxd7 {[%clk 0:04:50.7]} 9. a4 {[%clk 0:04:41.4]} 9... Bxf5 {[%clk
0:04:49.7]} 10. O-O {[%clk 0:04:40.3]} 10... Be7 {[%clk 0:04:49.1]} 11. a5
{[%clk 0:04:35.8]} 11... O-O {[%clk 0:04:47.3]} 12. Nd2 {[%clk 0:04:34.9]} 12...
Bg4 {[%clk 0:04:38.6]} 13. f3 {[%clk 0:04:30.4]} 13... Bh5 {[%clk 0:04:36.3]}
14. Nc4 {[%clk 0:04:29]} 14... Bf7 {[%clk 0:04:30]} 15. Rb1 {[%clk 0:04:26.1]}
15... Rb8 {[%clk 0:04:28.8]} 16. b4 {[%clk 0:04:24.9]} 16... cxb4 {[%clk
0:04:22.5]} 17. Rxb4 {[%clk 0:04:23.3]} 17... Rc8 {[%clk 0:04:09.2]} 18. Bb2
{[%clk 0:04:12.9]} 18... Rc5 {[%clk 0:04:01.6]} 19. Qd3 {[%clk 0:04:00.6]} 19...
Nxd5 {[%clk 0:03:58.8]} 20. Rxb7 {[%clk 0:03:56.5]} 20... Nxc3 {[%clk 0:03:54]}
21. Nb6 {[%clk 0:03:22.7]} 21... Nb5 {[%clk 0:02:21.3]} 22. Rd1 {[%clk
0:02:14.8]} 22... Rc7 {[%clk 0:02:08.6]} 23. Rxc7 {[%clk 0:01:54.5]} 23... Qxc7
{[%clk 0:02:07.6]} 24. Nd5 {[%clk 0:01:31.2]} 24... Qc5+ {[%clk 0:02:02.1]} 25.
Kh1 {[%clk 0:01:27.9]} 25... Bxd5 {[%clk 0:02:01]} 0-1

[Event "Live Chess"]
[Site "Chess.com"]
[Date "2023.05.20"]
[Round "-"]
[White "JoeRoot66"]
[Black "LiamClery2020"]
[Result "0-1"]
[WhiteElo "1900"]
[BlackElo "2082"]
[TimeControl "300"]
[EndTime "14:55:04 PDT"]
[Termination "LiamClery2020 won by resignation"]

1. e4 {[%clk 0:04:58.8]} 1... Nf6 {[%clk 0:04:59.9]} 2. e5 {[%clk 0:04:58.1]}
2... Nd5 {[%clk 0:04:59.2]} 3. d4 {[%clk 0:04:57.4]} 3... d6 {[%clk 0:04:58.4]}
4. c4 {[%clk 0:04:57]} 4... Nb6 {[%clk 0:04:57.9]} 5. exd6 {[%clk 0:04:56.9]}
5... cxd6 {[%clk 0:04:57.8]} 6. Nc3 {[%clk 0:04:55]} 6... g6 {[%clk 0:04:56.8]}
7. Be3 {[%clk 0:04:51.5]} 7... Bg7 {[%clk 0:04:55.7]} 8. b3 {[%clk 0:04:50.7]}
8... O-O {[%clk 0:04:54.9]} 9. Rc1 {[%clk 0:04:50.2]} 9... e5 {[%clk 0:04:54.2]}
10. d5 {[%clk 0:04:45]} 10... f5 {[%clk 0:04:52.1]} 11. Nf3 {[%clk 0:04:41.5]}
11... N8d7 {[%clk 0:04:47.2]} 12. Be2 {[%clk 0:04:39.8]} 12... e4 {[%clk
0:04:40.3]} 13. Nd4 {[%clk 0:04:38.1]} 13... Ne5 {[%clk 0:04:38.3]} 14. f4
{[%clk 0:04:34.7]} 14... exf3 {[%clk 0:04:32.4]} 15. Nxf3 {[%clk 0:04:33.5]}
15... Nxf3+ {[%clk 0:04:31]} 16. Bxf3 {[%clk 0:04:33.4]} 16... Re8 {[%clk
0:04:29.3]} 17. Kf2 {[%clk 0:04:27.2]} 17... f4 {[%clk 0:04:03.2]} 18. Bxf4
{[%clk 0:04:08.8]} 18... Bxc3 {[%clk 0:04:00.1]} 19. Rxc3 {[%clk 0:04:05.3]}
19... Qf6 {[%clk 0:03:59.4]} 20. Re3 {[%clk 0:03:56.5]} 20... Bd7 {[%clk
0:03:57.3]} 21. Bg3 {[%clk 0:03:40.7]} 21... Rxe3 {[%clk 0:03:55.2]} 22. Kxe3
{[%clk 0:03:40.1]} 22... Qc3+ {[%clk 0:03:52.9]} 23. Kf2 {[%clk 0:03:35.3]}
23... Re8 {[%clk 0:03:50.6]} 24. Re1 {[%clk 0:03:33]} 24... Rf8 {[%clk
0:03:44.4]} 25. Bxd6 {[%clk 0:03:27.5]} 25... Rf5 {[%clk 0:03:33.5]} 26. Be5
{[%clk 0:03:19]} 26... Rxe5 {[%clk 0:03:31.2]} 0-1

[Event "Live Chess"]
[Site "Chess.com"]
[Date "2023.05.20"]
[Round "-"]
[White "therealab0ne"]
[Black "nigelst"]
[Result "0-1"]
[WhiteElo "694"]
[BlackElo "1834"]
[TimeControl "300"]
[EndTime "14:55:05 PDT"]
[Termination "nigelst won by resignation"]

1. e4 {[%clk 0:04:58.9]} 1... c6 {[%clk 0:04:58.9]} 2. d4 {[%clk 0:04:55.2]}
2... d5 {[%clk 0:04:58.4]} 3. f3 {[%clk 0:04:54.1]} 3... e6 {[%clk 0:04:56.5]}
4. exd5 {[%clk 0:04:40.9]} 4... exd5 {[%clk 0:04:52.9]} 5. Nc3 {[%clk
0:04:39.5]} 5... Bd6 {[%clk 0:04:48.5]} 6. Bd3 {[%clk 0:04:24.5]} 6... Nf6
{[%clk 0:04:46.7]} 7. Nge2 {[%clk 0:04:23.7]} 7... O-O {[%clk 0:04:44.9]} 8. O-O
{[%clk 0:04:23]} 8... Qc7 {[%clk 0:04:37]} 9. a3 {[%clk 0:04:01.5]} 9... Bxh2+
{[%clk 0:04:33.6]} 10. Kh1 {[%clk 0:03:54]} 10... Bd6 {[%clk 0:04:31.7]} 11. Be3
{[%clk 0:03:48.3]} 11... Qe7 {[%clk 0:04:29]} 12. Bg1 {[%clk 0:03:46.1]} 12...
Ne4 {[%clk 0:04:16.4]} 13. Bxe4 {[%clk 0:03:44.6]} 13... Qh4+ {[%clk 0:04:14.7]}
0-1

[Event "Live Chess"]
[Site "Chess.com"]
[Date "2023.05.20"]
[Round "-"]
[White "JoeyCage"]
[Black "Conradical12"]
[Result "1-0"]
[WhiteElo "2306"]
[BlackElo "1600"]
[TimeControl "300"]
[EndTime "14:55:12 PDT"]
[Termination "JoeyCage won by checkmate"]

1. e4 {[%clk 0:04:56.1]} 1... e5 {[%clk 0:04:59]} 2. Nf3 {[%clk 0:04:54.6]} 2...
Nc6 {[%clk 0:04:58.5]} 3. Bb5 {[%clk 0:04:53.4]} 3... Nf6 {[%clk 0:04:57.7]} 4.
O-O {[%clk 0:04:50.7]} 4... Bc5 {[%clk 0:04:56]} 5. c3 {[%clk 0:04:49.2]} 5...
O-O {[%clk 0:04:51.5]} 6. d4 {[%clk 0:04:45.7]} 6... exd4 {[%clk 0:04:49.8]} 7.
cxd4 {[%clk 0:04:45.3]} 7... Bb6 {[%clk 0:04:48]} 8. d5 {[%clk 0:04:44.4]} 8...
Ne7 {[%clk 0:04:47]} 9. d6 {[%clk 0:04:39.5]} 9... cxd6 {[%clk 0:04:44.9]} 10.
Nc3 {[%clk 0:04:38.3]} 10... Ng6 {[%clk 0:04:44.3]} 11. Qxd6 {[%clk 0:04:36.1]}
11... Bc7 {[%clk 0:04:42.5]} 12. Qd4 {[%clk 0:04:32.4]} 12... Re8 {[%clk
0:04:41.2]} 13. Bg5 {[%clk 0:04:30]} 13... Be5 {[%clk 0:04:34.7]} 14. Nxe5
{[%clk 0:04:27.3]} 14... Nxe5 {[%clk 0:04:33.6]} 15. f4 {[%clk 0:04:19.4]} 15...
Neg4 {[%clk 0:04:25.2]} 16. e5 {[%clk 0:04:14.2]} 16... h6 {[%clk 0:04:19.3]}
17. exf6 {[%clk 0:04:07]} 17... hxg5 {[%clk 0:04:17.8]} 18. fxg7 {[%clk
0:04:05.8]} 18... Ne3 {[%clk 0:04:11.6]} 19. Rf2 {[%clk 0:03:57.8]} 19... a6
{[%clk 0:04:02.2]} 20. Bd3 {[%clk 0:03:54.7]} 20... b5 {[%clk 0:03:45.5]} 21.
Re1 {[%clk 0:03:47.5]} 21... Qe7 {[%clk 0:03:44.3]} 22. fxg5 {[%clk 0:03:39.2]}
22... Qxg5 {[%clk 0:03:34.8]} 23. Nd5 {[%clk 0:03:33.4]} 23... Bb7 {[%clk
0:03:19.8]} 24. Nf6+ {[%clk 0:03:31.2]} 24... Qxf6 {[%clk 0:03:14.5]} 25. Qxf6
{[%clk 0:03:27]} 25... Nxg2 {[%clk 0:03:07.3]} 26. Qxf7# {[%clk 0:03:24]} 1-0

[Event "Live Chess"]
[Site "Chess.com"]
[Date "2023.05.20"]
[Round "-"]
[White "ranvir123"]
[Black "colourmefree"]
[Result "1-0"]
[WhiteElo "923"]
[BlackElo "397"]
[TimeControl "300"]
[EndTime "14:55:25 PDT"]
[Termination "ranvir123 won by resignation"]

1. e4 {[%clk 0:04:57.9]} 1... e6 {[%clk 0:04:59.3]} 2. d4 {[%clk 0:04:55.6]}
2... Nc6 {[%clk 0:04:54.5]} 3. d5 {[%clk 0:04:53.4]} 3... exd5 {[%clk
0:04:52.2]} 4. exd5 {[%clk 0:04:52.5]} 4... Nb4 {[%clk 0:04:48.8]} 5. Qe2+
{[%clk 0:04:49.9]} 5... Be7 {[%clk 0:04:38.9]} 6. Bd2 {[%clk 0:04:47.2]} 6...
Nxd5 {[%clk 0:04:36.7]} 7. Nc3 {[%clk 0:04:42.2]} 7... Nxc3 {[%clk 0:04:30.3]}
8. Bxc3 {[%clk 0:04:41.2]} 8... Nf6 {[%clk 0:04:28.4]} 9. Nf3 {[%clk 0:04:39]}
9... Nd5 {[%clk 0:04:21.5]} 10. Bxg7 {[%clk 0:04:34.3]} 10... Rg8 {[%clk
0:04:18.7]} 11. Bc3 {[%clk 0:04:32.2]} 11... Nxc3 {[%clk 0:04:16.9]} 12. bxc3
{[%clk 0:04:31]} 12... b6 {[%clk 0:04:12.5]} 13. Nd2 {[%clk 0:04:19]} 13... Bb7
{[%clk 0:04:10.3]} 14. f4 {[%clk 0:04:10.1]} 14... c6 {[%clk 0:03:59.5]} 15. Qe4
{[%clk 0:04:05.5]} 15... Rg7 {[%clk 0:03:46.7]} 16. f5 {[%clk 0:04:00.9]} 16...
Qc7 {[%clk 0:03:39.1]} 17. f6 {[%clk 0:03:56.5]} 17... O-O-O {[%clk 0:03:14.4]}
18. fxg7 {[%clk 0:03:51]} 18... c5 {[%clk 0:03:08.5]} 19. Qxe7 {[%clk
0:03:45.3]} 19... d6 {[%clk 0:02:56.5]} 20. Qxc7+ {[%clk 0:03:38.4]} 20... Kxc7
{[%clk 0:02:55.1]} 21. Bc4 {[%clk 0:03:36.8]} 21... Rg8 {[%clk 0:02:51.8]} 22.
Bxf7 {[%clk 0:03:35.2]} 22... Rxg7 {[%clk 0:02:51]} 23. Bc4 {[%clk 0:03:33.7]}
23... Rxg2 {[%clk 0:02:40.1]} 24. O-O-O {[%clk 0:03:30.2]} 24... Rg4 {[%clk
0:02:31.6]} 25. Rhg1 {[%clk 0:03:26.3]} 25... Rxc4 {[%clk 0:02:29.1]} 26. Nxc4
{[%clk 0:03:21.9]} 26... Bf3 {[%clk 0:02:27]} 27. Rdf1 {[%clk 0:03:19.8]} 27...
Be2 {[%clk 0:02:25.6]} 28. Rf2 {[%clk 0:03:18.3]} 28... Bxc4 {[%clk 0:02:24]}
29. Rg7+ {[%clk 0:03:16.7]} 29... Kc6 {[%clk 0:02:22.8]} 30. Rxa7 {[%clk
0:03:15.5]} 30... d5 {[%clk 0:02:06.5]} 31. Rxh7 {[%clk 0:03:12.7]} 31... Bxa2
{[%clk 0:02:03.1]} 32. h4 {[%clk 0:03:07.8]} 32... d4 {[%clk 0:01:48.3]} 33.
cxd4 {[%clk 0:03:04.2]} 33... cxd4 {[%clk 0:01:47]} 34. Rf5 {[%clk 0:03:00.3]}
34... Be6 {[%clk 0:01:42.7]} 35. Rh6 {[%clk 0:02:57.3]} 35... Kd6 {[%clk
0:01:38.7]} 36. Rff6 {[%clk 0:02:56.2]} 36... Ke5 {[%clk 0:01:36.2]} 37. Rxe6+
{[%clk 0:02:55.3]} 37... Kd5 {[%clk 0:01:34.9]} 38. Rxb6 {[%clk 0:02:53.2]}
38... Kc4 {[%clk 0:01:32.7]} 39. Rbd6 {[%clk 0:02:53.1]} 39... Kc3 {[%clk
0:01:29.1]} 40. Rhe6 {[%clk 0:02:50.9]} 40... d3 {[%clk 0:01:24.2]} 41. cxd3
{[%clk 0:02:49.3]} 1-0

[Event "Live Chess"]
[Site "Chess.com"]
[Date "2023.05.20"]
[Round "-"]
[White "JoshMcK"]
[Black "VicLemon"]
[Result "1/2-1/2"]
[WhiteElo "1548"]
[BlackElo "1366"]
[TimeControl "300"]
[EndTime "14:55:29 PDT"]
[Termination "Game drawn by repetition"]

1. e4 {[%clk 0:04:59.2]} 1... c5 {[%clk 0:04:55.2]} 2. c3 {[%clk 0:04:57.9]}
2... d5 {[%clk 0:04:47.5]} 3. exd5 {[%clk 0:04:56.4]} 3... Qxd5 {[%clk
0:04:46.5]} 4. d4 {[%clk 0:04:52.8]} 4... Nf6 {[%clk 0:04:26.9]} 5. Nf3 {[%clk
0:04:50.3]} 5... Bg4 {[%clk 0:04:24]} 6. Nbd2 {[%clk 0:04:41.9]} 6... Nc6 {[%clk
0:04:17.3]} 7. Bc4 {[%clk 0:04:39.9]} 7... Qd8 {[%clk 0:04:01.6]} 8. dxc5 {[%clk
0:04:34.2]} 8... e5 {[%clk 0:03:53.7]} 9. O-O {[%clk 0:04:27.7]} 9... Bxc5
{[%clk 0:03:51.9]} 10. Qb3 {[%clk 0:04:14.2]} 10... O-O {[%clk 0:03:49]} 11.
Qxb7 {[%clk 0:04:11]} 11... Na5 {[%clk 0:03:44.3]} 12. Qb5 {[%clk 0:04:07.6]}
12... Nxc4 {[%clk 0:03:42.9]} 13. Qxc4 {[%clk 0:03:59.4]} 13... Qb6 {[%clk
0:03:36.7]} 14. Ne4 {[%clk 0:03:53.2]} 14... Bxf3 {[%clk 0:03:13.8]} 15. Nxf6+
{[%clk 0:03:47.5]} 15... gxf6 {[%clk 0:03:12.5]} 16. gxf3 {[%clk 0:03:44.1]}
16... Kh8 {[%clk 0:03:11.1]} 17. Be3 {[%clk 0:03:39.8]} 17... Bxe3 {[%clk
0:03:03.7]} 18. fxe3 {[%clk 0:03:39.7]} 18... Qxe3+ {[%clk 0:02:59.5]} 19. Kh1
{[%clk 0:03:38.9]} 19... Rad8 {[%clk 0:02:43.6]} 20. Rg1 {[%clk 0:03:29.2]}
20... Qxf3+ {[%clk 0:02:40.6]} 21. Rg2 {[%clk 0:03:24.5]} 21... Rd1+ {[%clk
0:02:35]} 22. Rxd1 {[%clk 0:03:20]} 22... Qxd1+ {[%clk 0:02:33.8]} 23. Rg1
{[%clk 0:03:19.2]} 23... Qf3+ {[%clk 0:02:30.9]} 24. Rg2 {[%clk 0:03:17.7]}
24... Rg8 {[%clk 0:02:29]} 25. Qe2 {[%clk 0:03:11.1]} 25... Rxg2 {[%clk
0:02:11.8]} 26. Qxg2 {[%clk 0:03:09.2]} 26... Qd1+ {[%clk 0:02:07.9]} 27. Qg1
{[%clk 0:03:08.2]} 27... Qd5+ {[%clk 0:02:06.1]} 28. Qg2 {[%clk 0:03:07.1]}
28... Qxa2 {[%clk 0:02:02.6]} 29. Qa8+ {[%clk 0:03:04]} 29... Kg7 {[%clk
0:01:59.3]} 30. Qg2+ {[%clk 0:03:03.6]} 30... Kf8 {[%clk 0:01:52.5]} 31. Qa8+
{[%clk 0:03:01.4]} 31... Ke7 {[%clk 0:01:49.9]} 32. Qb7+ {[%clk 0:03:00.4]}
32... Ke6 {[%clk 0:01:47.3]} 33. Qc6+ {[%clk 0:02:59.3]} 33... Kf5 {[%clk
0:01:34.3]} 34. Qf3+ {[%clk 0:02:57.6]} 34... Ke6 {[%clk 0:01:30.3]} 35. Qc6+
{[%clk 0:02:56.3]} 35... Ke7 {[%clk 0:01:28.3]} 36. Qb7+ {[%clk 0:02:55.1]}
36... Kd6 {[%clk 0:01:22.3]} 37. Qb4+ {[%clk 0:02:49.5]} 37... Kd5 {[%clk
0:01:16.7]} 38. Qb5+ {[%clk 0:02:48.3]} 38... Ke4 {[%clk 0:01:14.9]} 39. Qe2+
{[%clk 0:02:45.5]} 39... Kd5 {[%clk 0:01:02.3]} 40. Qb5+ {[%clk 0:02:43.3]}
40... Kd6 {[%clk 0:01:00.2]} 41. Qb8+ {[%clk 0:02:39.3]} 41... Kc5 {[%clk
0:00:49.7]} 42. Qb4+ {[%clk 0:02:35.8]} 42... Kc6 {[%clk 0:00:42.5]} 43. Kg2
{[%clk 0:02:19.9]} 43... Qd5+ {[%clk 0:00:38.9]} 44. Kf2 {[%clk 0:02:18.4]}
44... Qd2+ {[%clk 0:00:36.3]} 45. Kg3 {[%clk 0:02:14.6]} 45... Qe3+ {[%clk
0:00:35.1]} 46. Kg2 {[%clk 0:02:12.1]} 46... Qg5+ {[%clk 0:00:32.2]} 47. Kh1
{[%clk 0:02:10.7]} 47... Qc1+ {[%clk 0:00:29.7]} 48. Kg2 {[%clk 0:02:08.9]}
48... Qd2+ {[%clk 0:00:28.7]} 49. Kh1 {[%clk 0:02:07.8]} 49... Qe1+ {[%clk
0:00:26.9]} 50. Kg2 {[%clk 0:02:06.6]} 50... Qe2+ {[%clk 0:00:25.8]} 51. Kg3
{[%clk 0:02:04.8]} 51... Qe3+ {[%clk 0:00:23.1]} 52. Kg2 {[%clk 0:02:03.9]}
52... Qe2+ {[%clk 0:00:20]} 53. Kg3 {[%clk 0:02:03.1]} 53... Qe3+ {[%clk
0:00:19.2]} 1/2-1/2